bitfinex/quotes_ETHUSD_20250110
["timestamp","ask_amount","ask_price","bid_price","bid_amount"]
[1736532477683,3.0,3303.5,3302.6,0.7919]
[1736532477893,3.02738,3303.2,3302.6,0.7919]
[1736532478193,0.8113,3303.9,3302.7,0.0075]
[1736532478387,3.02682,3303.8,3302.8,3.02765]
[1736532478527,5.38,3304.2,3302.9,3.02763]
[1736532478728,3.02669,3304.0,3303.0,0.804]
[1736532478984,3.0075,3303.9,3303.0,0.804]
[1736532479167,3.03425,3303.9,3303.0,0.804]
[1736532479325,0.0075,3303.9,3303.0,0.804]
[1736532479524,3.02699,3303.7,3303.0,0.804]
[1736532479740,0.0075,3303.6,3303.0,0.804]
[1736532480010,0.30075,3303.9,3303.0,0.804]
[1736532480148,8.40652,3304.2,3303.1,3.02744]
[1736532480480,3.0,3304.1,3303.0,0.804]
[1736532480643,3.03407,3304.1,3303.1,3.02743]
[1736532480855,0.0075,3303.9,3303.0,0.804]
[1736532481066,0.0075,3303.9,3303.2,3.02736]
[1736532481395,3.02643,3304.3,3303.3,3.78139]
[1736532481533,0.41416314,3304.7,3303.3,0.7542]
[1736532481738,3.026,3304.7,3303.5,0.7617]
[1736532482059,0.7601,3305.0,3303.5,0.7542]
[1736532482060,3.0262,3304.5,3303.5,0.7542]
[1736532482252,0.0075,3303.9,3303.5,0.7542]
[1736532482572,6.02644,3304.3,3303.5,0.7542]
[1736532482734,3.602644,3304.3,3303.5,0.7542]
[1736532483084,3.0263,3304.4,3303.5,0.7542]
[1736532483435,0.5575,3304.8,3303.5,3.78121]
[1736532483633,3.02653,3304.2,3303.5,0.7542]
[1736532483846,0.0075,3304.1,3303.5,0.7542]
[1736532484478,3.02594,3304.8,3303.5,0.7542]
[1736532484678,0.302594,3304.7,3303.6,3.05718917]
[1736532485060,3.0075,3304.6,3303.6,3.05718917]
[1736532485245,0.0075,3304.6,3303.7,0.2768867]
[1736532485447,3.0,3304.9,3303.7,0.2768867]
[1736532485671,3.02608,3304.7,3303.7,0.2768867]
[1736532485874,0.0075,3304.5,3303.7,0.2768867]
[1736532486369,3.0337,3304.5,3303.5,0.7542]
[1736532486683,0.7601,3305.0,3303.5,0.7542]
[1736532486842,3.02607,3304.7,3303.5,3.78128]
[1736532487262,0.0075,3304.6,3303.5,0.7542]
[1736532487566,0.0075,3304.5,3303.5,3.78126]
[1736532488434,0.0075,3304.5,3303.6,3.02699]
[1736532488638,3.78584,3305.0,3303.5,1.132326]
[1736532488836,3.02574,3305.0,3303.8,0.7666]
[1736532489545,3.0075,3304.9,3304.0,3.0266]
[1736532490381,3.58408033,3305.8,3304.0,3.0266]
[1736532490382,6.1454,3306.3,3304.9,0.7633]
[1736532490536,0.61454,3306.2,3305.3,3.58408033]
[1736532490733,3.02435,3306.5,3305.5,3.02524]
[1736532490963,0.7654,3306.8,3305.5,3.02524]
[1736532490964,0.7654,3306.8,3305.6,0.03025014]
[1736532491140,0.0075,3306.6,3305.7,3.02501]
[1736532491464,1.59476912,3306.9,3305.9,3.02487]
[1736532491669,1.59476912,3306.9,3306.1,3.58408033]
[1736532491977,3.33979868,3307.4,3306.4,3.0244]
[1736532492178,0.7654,3307.7,3306.4,3.0244]
[1736532492179,3.02335,3307.6,3306.6,0.7633]
[1736532492378,0.0075,3307.3,3306.6,0.7633]
[1736532493085,3.02318,3307.8,3306.7,3.05439116]
[1736532493267,0.33395537,3307.8,3306.7,0.03024116]
[1736532493578,0.31637374,3308.0,3306.6,0.7633]
[1736532493579,0.0075,3307.9,3306.8,3.02404]
[1736532493740,3.02298,3308.0,3306.8,3.02404]
[1736532493939,3.02306,3307.9,3306.8,3.02404]
[1736532494177,3.02342,3307.6,3306.6,0.7633]
[1736532494386,0.0075,3307.5,3306.6,3.81776888]
[1736532494585,0.8326,3308.1,3307.0,0.7542]
[1736532494586,3.02296,3308.1,3307.0,0.7542]
[1736532494740,3.02298,3308.0,3307.0,0.78443504]
[1736532494939,3.0075,3307.9,3307.0,0.7542]
[1736532495605,3.0075,3307.9,3307.0,3.77808]
[1736532495907,0.0075,3307.7,3307.0,0.7542]
[1736532496114,0.0075,3307.5,3307.0,0.7542]
[1736532496618,0.0075,3306.9,3306.1,3.58408033]
[1736532496799,3.03154,3306.9,3306.2,0.7931]
[1736532496978,0.0075,3306.9,3306.2,0.7931]
[1736532497181,0.0075,3307.0,3306.2,0.7931]
[1736532497818,3.0237,3307.2,3306.2,4.56084942]
[1736532498112,0.0075,3307.1,3306.2,4.56084942]
[1736532498521,0.0075,3307.1,3306.3,0.03024199]
[1736532498720,0.0075,3307.1,3306.2,4.56084942]
[1736532498972,0.0075,3307.0,3306.2,0.7931]
[1736532499442,3.0,3307.4,3306.2,0.7931]
[1736532499443,3.02437,3306.5,3306.2,0.7931]
[1736532499603,0.0075,3306.4,3306.2,0.7931]
[1736532499803,3.0238,3307.1,3306.2,0.7931]
[1736532500034,0.7798,3307.3,3306.2,3.81771]
[1736532500237,3.0,3307.4,3306.2,0.7931]
[1736532500421,3.0075,3307.0,3306.2,0.7931]
[1736532500630,0.0075,3306.8,3306.2,0.7931]
[1736532500941,3.03159,3306.8,3306.2,0.7931]
[1736532501099,0.0075,3306.9,3306.2,0.7931]
[1736532501305,3.626043,3307.3,3306.2,3.81764]
[1736532501538,3.626043,3307.3,3306.2,3.84788236]
[1736532501849,3.03126,3307.2,3306.2,1.53629627]
[1736532502052,3.03126,3307.2,3306.2,1.56653863]
[1736532502410,0.0075,3307.5,3306.2,1.56653863]
[1736532502654,3.02335,3307.6,3306.6,3.02419]
[1736532502867,0.7762,3308.0,3306.6,3.02417]
[1736532503066,0.0075,3307.5,3306.6,3.02417]
[1736532503364,0.0075,3307.1,3306.5,0.8285]
[1736532503570,3.03088,3307.6,3306.5,0.8285]
[1736532503872,0.0075,3307.0,3306.5,0.8285]
[1736532504248,0.8329,3308.4,3306.5,0.8285]
[1736532504427,3.02344,3307.5,3306.5,0.8285]
[1736532504863,0.0075,3307.4,3306.5,0.8285]
[1736532505357,0.0075,3307.2,3306.5,0.8285]
[1736532506159,3.02333,3307.7,3306.6,0.03024251]
[1736532506323,3.0,3307.6,3306.7,3.85364]
[1736532506508,0.0075,3307.7,3306.7,0.8295]
[1736532506710,0.0075,3307.5,3306.7,0.85973849]
[1736532507145,3.03094,3307.5,3306.7,0.85973849]
[1736532507349,0.0075,3307.5,3306.7,0.8295]
[1736532507533,0.0075,3307.8,3306.7,0.8295]
[1736532507742,0.0075,3307.3,3306.7,0.8295]
[1736532508460,3.0075,3307.5,3306.7,0.8295]
[1736532508664,3.02353,3307.4,3306.7,0.8295]
[1736532508823,0.0075,3307.4,3306.8,3.02402]
[1736532509149,3.02287,3308.2,3307.2,3.02362]
[1736532509364,0.0075,3308.1,3307.2,3.02362]
[1736532509538,3.0075,3308.1,3307.3,3.848]
[1736532510012,3.0075,3308.2,3307.3,3.848]
[1736532510612,0.0075,3308.2,3307.3,0.8244]
[1736532510841,0.0075,3308.3,3307.3,0.8244]
[1736532511158,0.31623522,3308.4,3307.4,0.03023317]
[1736532511351,0.31623522,3308.4,3307.8,3.02314]
[1736532511553,0.31623522,3308.4,3307.9,0.7751]
[1736532511711,0.0075,3308.6,3307.9,0.7751]
[1736532511914,3.02993,3308.6,3307.9,0.7751]
[1736532512113,0.34211391,3308.6,3307.9,0.7751]
[1736532512343,3.02986,3308.7,3307.9,0.7751]
[1736532513058,3.0,3309.0,3307.4,1.19352106]
[1736532513059,0.782,3308.5,3307.4,1.19352106]
[1736532513254,0.0075,3308.1,3307.4,1.19352106]
[1736532513753,3.03041,3308.1,3307.4,0.7542]
[1736532514256,6.02272,3308.3,3307.4,3.7777]
[1736532514555,3.0,3308.2,3307.4,3.7777]
[1736532514763,0.0075,3308.1,3307.4,3.7777]
[1736532515066,0.831,3308.8,3307.4,0.7542]
[1736532515256,3.02234,3308.7,3307.5,0.03023252]
[1736532515445,9.01287969,3309.5,3307.5,0.03023252]
[1736532515446,3.02223,3308.9,3307.6,0.7901]
[1736532515619,0.302223,3308.8,3307.8,3.02315]
[1736532516118,3.0075,3308.7,3307.7,3.02323]
[1736532516862,0.0075,3308.6,3307.7,3.02323]
[1736532517363,0.0075,3308.6,3307.8,0.43932106]
[1736532517574,3.02132,3309.9,3308.0,0.8019]
[1736532517782,3.02154,3309.6,3308.6,3.82431]
[1736532517961,3.02126,3309.9,3308.7,0.298]
[1736532518143,3.02126,3309.9,3308.8,0.03021716]
[1736532518477,3.02126,3309.9,3308.9,0.8019]
[1736532518631,0.0075,3309.8,3309.0,0.03021706]
[1736532520137,0.0075,3309.8,3309.1,0.43932106]
[1736532520737,3.02937,3309.2,3309.1,0.43932106]
[1736532521083,6.02937,3309.2,3309.1,0.43932106]
[1736532521436,3.0075,3309.2,3308.7,0.43932106]
[1736532521679,3.0,3309.2,3308.7,0.43932106]
[1736532522088,0.7727,3309.7,3308.7,0.43932106]
[1736532522089,3.02153,3309.6,3308.7,0.43932106]
[1736532522236,3.43440118,3309.6,3308.7,0.43932106]
[1736532522435,3.0,3309.4,3308.7,0.43932106]
[1736532522849,3.0,3309.4,3308.6,0.0302207]
[1736532523051,3.02179,3309.3,3308.5,0.8311]
[1736532523253,3.02914,3309.5,3308.5,0.8311]
[1736532523467,0.0075,3309.5,3308.5,1.216469]
[1736532523666,0.0075,3309.2,3308.5,1.216469]
[1736532523863,0.0075,3309.2,3308.5,0.8311]
[1736532524272,3.0,3309.4,3308.5,0.8311]
[1736532524582,3.0,3309.4,3308.6,0.03022016]
[1736532525148,3.0,3309.4,3308.7,0.297]
[1736532526410,3.02172,3309.4,3308.7,0.297]
[1736532526585,3.02163,3309.5,3308.7,0.297]
[1736532526895,3.02118,3310.0,3308.9,3.85277]
[1736532527110,0.7856,3310.4,3309.1,0.8307]
[1736532527396,0.3160961,3310.6,3309.1,0.8307]
[1736532527595,0.0075,3309.8,3309.1,0.8307]
[1736532528201,0.3160961,3310.6,3309.1,0.8307]
[1736532528202,3.02108,3310.1,3309.1,3.85264]
[1736532528400,3.02108,3310.1,3309.3,0.7952]
[1736532528601,3.02108,3310.1,3309.3,0.82541421]
[1736532529044,3.0075,3310.2,3309.3,0.82541421]
[1736532529192,3.02107,3310.1,3309.3,0.82541421]
[1736532529393,0.0075,3310.2,3309.3,0.7952]
[1736532529598,0.0075,3309.8,3309.3,0.7952]
[1736532529758,3.02111,3310.1,3309.3,0.7952]
[1736532529955,3.02096,3310.2,3309.3,0.7952]
[1736532530212,3.02096,3310.2,3309.4,0.381701]
[1736532530370,0.3160961,3310.6,3309.8,3.02131]
[1736532530555,0.3160961,3310.6,3310.0,4.37358033]
[1736532530752,0.3160961,3310.6,3310.2,3.02089]
[1736532530986,0.3160961,3310.6,3310.3,0.0302058]
[1736532531189,0.3160961,3310.6,3310.2,3.02089]
[1736532531401,3.0205,3310.7,3310.0,0.7895]
[1736532531611,3.02067,3310.6,3310.0,0.7895]
[1736532531813,3.02069,3310.5,3310.0,0.7895]
[1736532531953,3.02097,3310.2,3309.6,1.38367309]
[1736532532159,0.0075,3310.3,3309.6,0.7835]
[1736532532392,0.6124,3310.3,3309.6,0.7835]
[1736532532593,3.02049,3310.8,3309.7,0.81371446]
[1736532532818,0.0075,3310.7,3309.7,3.83506446]
[1736532533016,3.02809,3310.7,3309.7,3.80485]
[1736532533223,3.02063,3310.6,3309.7,3.80485]
[1736532533387,3.02063,3310.6,3309.7,0.7835]
[1736532533601,3.02108,3310.1,3309.7,0.7835]
[1736532533942,3.0,3310.4,3309.4,0.7835]
[1736532534233,0.302813,3310.6,3309.4,0.7835]
[1736532534585,0.0075,3310.5,3309.5,0.03021119]
[1736532534789,0.0075,3310.5,3309.7,3.02141]
[1736532535003,0.0075,3310.5,3309.8,3.05152]
[1736532535407,3.02096,3310.2,3309.6,0.7835]
[1736532535605,0.0075,3310.1,3309.6,0.7835]
[1736532535787,3.02114,3310.0,3309.6,0.7835]
[1736532536034,0.0075,3309.8,3308.9,0.7835]
[1736532536200,0.0075,3309.5,3308.9,0.7835]
[1736532536590,0.0075,3309.5,3309.0,0.60127854]
[1736532537043,3.02119,3310.0,3309.0,0.60127854]
[1736532537251,3.021,3310.2,3309.1,0.7835]
[1736532537550,3.02057,3310.7,3309.5,3.58408033]
[1736532537725,0.9823999,3311.3,3309.7,0.7835]
[1736532537892,3.02013,3311.2,3310.1,3.02102]
[1736532538086,0.1668999,3311.3,3310.1,0.59153659]
[1736532538325,0.0075,3311.0,3310.1,3.61256659]
[1736532538530,0.0075,3311.0,3310.3,0.7772]
[1736532539759,0.0075,3311.2,3310.3,4.36128033]
[1736532539964,0.0075,3311.2,3310.4,3.05091595]
[1736532540171,0.1668999,3311.3,3310.6,3.02059]
[1736532540351,0.1668999,3311.3,3310.8,3.79614]
[1736532540528,0.1668999,3311.3,3310.8,1.15843432]
[1736532540725,0.1668999,3311.3,3310.8,1.18863523]
[1736532540909,0.1668999,3311.3,3310.8,1.15843432]
[1736532541106,0.0075,3311.2,3310.8,0.7758]
[1736532541631,3.02759,3311.2,3310.3,0.03020411]
[1736532541967,0.0075,3310.9,3310.2,0.7758]
[1736532542258,0.8164,3311.2,3310.5,3.02067]
[1736532542259,0.0075,3311.2,3310.5,3.02067]
[1736532542405,0.1668999,3311.3,3310.5,3.02067]
[1736532542613,0.1668999,3311.3,3310.6,0.03020364]
[1736532542909,0.1668999,3311.3,3310.5,3.68416543]
[1736532542910,3.0,3311.2,3310.5,0.66349543]
[1736532543105,0.1668999,3311.3,3310.5,0.66349543]
[1736532543565,0.0075,3310.7,3310.2,0.7758]
[1736532543771,0.0075,3310.4,3309.8,0.8147]
[1736532544065,0.0075,3310.4,3309.5,0.8147]
[1736532544265,0.0075,3310.1,3309.5,0.8147]
[1736532544624,3.0206,3310.6,3309.6,0.03021409]
[1736532544828,3.0207,3310.5,3309.5,0.8147]
[1736532545024,0.0075,3310.4,3309.5,3.83627]
[1736532545212,0.0075,3310.4,3309.5,0.8147]
[1736532545412,3.02885,3309.8,3309.1,0.8312]
[1736532545766,0.0075,3309.7,3309.1,0.8312]
[1736532546062,0.754,3310.1,3309.1,1.03449508]
[1736532546256,0.0075,3309.9,3309.2,3.02186]
[1736532546812,3.0075,3310.0,3309.2,3.02186]
[1736532547056,0.0075,3309.8,3309.1,0.8312]
[1736532547416,0.0075,3309.5,3308.9,0.297]
[1736532547760,3.02127,3309.9,3309.0,0.03021934]
[1736532547926,0.754,3310.1,3309.4,3.02168]
[1736532548132,0.7607,3310.5,3309.5,0.03021638]
[1736532548660,3.02833,3310.4,3309.5,3.02152]
[1736532549231,0.0075,3310.0,3309.1,3.85454]
[1736532549562,0.0075,3310.2,3309.4,3.02167]
[1736532549763,3.0,3310.4,3309.4,3.02164]
[1736532550107,3.0284,3310.3,3309.4,3.02164]
[1736532550346,0.0075,3310.3,3309.5,3.02159]
[1736532550548,0.0075,3310.3,3309.6,3.0215]
[1736532550772,3.78142,3310.5,3309.6,3.0215]
[1736532550773,0.7607,3310.5,3309.7,3.02139]
[1736532550927,0.0075,3310.4,3309.2,0.74386203]
[1736532551130,0.0075,3310.4,3309.3,0.4576462]
[1736532551312,0.0075,3310.4,3309.4,0.03021172]
[1736532551513,0.0075,3310.4,3309.6,0.8289]
[1736532551716,0.0075,3310.1,3309.2,0.7876]
[1736532552170,3.02099,3310.2,3309.2,0.7876]
[1736532552329,0.7607,3310.5,3309.3,0.03021612]
[1736532552529,0.7607,3310.5,3309.7,3.02141]
[1736532552731,0.7607,3310.5,3309.4,3.58408033]
[1736532552966,0.7607,3310.5,3309.7,3.02134]
[1736532553367,3.02033,3310.9,3309.9,3.02123]
[1736532553666,0.7669,3311.2,3310.5,3.02068]
[1736532553885,0.1668999,3311.3,3310.5,3.02068]
[1736532554252,0.0075,3311.2,3310.5,3.02068]
[1736532554634,0.1668999,3311.3,3310.8,3.02035]
[1736532554964,0.1668999,3311.3,3311.2,3.81155]
[1736532555279,0.1668999,3311.3,3311.2,3.84174692]
[1736532556294,0.1668999,3311.3,3311.2,0.22095135]
[1736532556432,0.1668999,3311.3,3311.2,0.66342696]
[1736532556879,0.1743999,3311.3,3311.2,0.66342696]
[1736532557084,0.49382689,3311.3,3311.2,0.66342696]
[1736532557279,0.1743999,3311.3,3311.2,0.66342696]
[1736532557638,0.1743999,3311.3,3311.2,0.44247561]
[1736532557837,0.1743999,3311.3,3310.5,0.297]
[1736532558264,3.1943799,3311.3,3310.5,0.297]
[1736532558461,0.0075,3311.2,3310.5,0.297]
[1736532558785,0.0075,3311.0,3310.5,0.297]
[1736532559141,0.0075,3310.8,3310.5,0.297]
[1736532559594,0.0075,3310.8,3310.0,3.77453]
[1736532560093,0.0075,3310.8,3310.2,0.58998245]
[1736532560294,0.0075,3310.8,3310.0,0.7534]
[1736532560656,0.7961,3310.9,3310.0,0.78360914]
[1736532560802,0.389136,3310.8,3310.0,1.36316347]
[1736532560999,0.0075,3310.5,3309.9,0.44180306]
[1736532561358,3.02864,3310.0,3309.9,0.44180306]
[1736532561833,0.0075,3309.6,3308.7,0.7805]
[1736532562034,3.02127,3309.9,3308.9,3.02213]
[1736532562197,3.405767,3309.9,3308.9,3.02213]
[1736532562552,0.0075,3309.8,3308.9,3.02213]
[1736532562690,3.02884,3309.8,3308.8,0.03021946]
[1736532562894,3.02884,3309.8,3308.8,3.05245946]
[1736532563107,0.8237,3310.0,3309.2,3.02187]
[1736532563314,3.0,3310.1,3309.2,3.02187]
[1736532563507,0.8289,3310.3,3309.3,0.03021568]
[1736532563762,0.8289,3310.3,3309.4,0.8217]
[1736532563968,0.8289,3310.3,3309.4,3.84339]
[1736532564146,0.0075,3310.5,3309.4,0.8217]
[1736532564316,3.0075,3310.5,3309.5,3.02152]
[1736532564517,0.682512,3310.5,3309.2,0.297]
[1736532564731,3.02089,3310.3,3309.3,3.0519945]
[1736532565058,0.0075,3310.2,3309.2,0.297]
[1736532565359,3.02143,3309.7,3309.2,0.297]
[1736532565652,3.02906,3309.6,3308.9,0.7658]
[1736532566159,0.0075,3309.7,3308.9,0.7658]
[1736532567815,3.02097,3310.2,3309.1,3.02196]
[1736532567816,3.02098,3310.2,3309.1,3.02196]
[1736532568164,3.02016,3311.1,3309.1,3.02196]
[1736532568165,0.8167,3310.7,3309.5,0.7777]
[1736532568526,3.02073,3310.5,3309.5,0.7777]
[1736532568972,0.0075,3310.3,3309.5,0.7777]
[1736532569297,0.8167,3310.7,3309.2,0.7614]
[1736532569562,3.84479,3309.7,3308.4,0.7614]
[1736532569763,0.5575,3309.2,3308.4,0.7614]
[1736532570330,0.5575,3309.1,3308.4,0.7614]
[1736532570565,0.55,3308.8,3308.0,0.7614]
[1736532570858,0.55,3308.7,3308.0,0.7614]
[1736532571063,3.57235,3308.7,3308.0,0.7614]
[1736532571368,0.55,3308.8,3308.0,0.7614]
[1736532571861,3.57228,3308.8,3308.0,0.7614]
[1736532572016,0.55,3308.6,3308.0,0.7614]
[1736532572457,0.55,3308.6,3307.7,0.297]
[1736532572631,0.55,3308.6,3307.6,0.59909367]
[1736532572632,0.0075,3308.4,3307.6,0.59909367]
[1736532572826,3.02284,3308.2,3307.1,3.02371]
[1736532573028,0.7743,3308.6,3307.0,0.7999]
[1736532573228,0.5575,3307.9,3307.0,0.7999]
[1736532573574,0.5575,3307.9,3307.0,1.211992]
[1736532573859,0.55,3307.7,3307.0,1.211992]
[1736532574214,0.55,3307.7,3307.0,0.7999]
[1736532574985,0.55,3307.7,3307.0,3.82369]
[1736532575195,0.432728,3308.8,3307.1,0.03023584]
[1736532575357,0.8223,3308.9,3307.9,3.02297]
[1736532575545,3.84446,3308.9,3308.0,0.8177]
[1736532575744,3.84446,3308.9,3307.7,0.8177]
[1736532575745,0.0075,3308.7,3307.7,0.8177]
[1736532576052,0.565,3308.8,3307.7,0.8177]
[1736532576395,3.02996,3308.6,3307.7,0.8177]
[1736532576613,0.55,3308.5,3307.7,0.8177]
[1736532577285,0.8223,3308.9,3307.7,1.201802]
[1736532577482,3.02183,3309.3,3308.2,3.02273]
[1736532577844,0.0075,3309.2,3307.9,0.32722473]
[1736532578047,3.02199,3309.1,3308.1,3.02288]
[1736532578287,3.02178,3309.4,3308.3,3.02267]
[1736532578483,0.015,3309.4,3308.3,3.02267]
[1736532578644,3.0,3309.1,3308.1,3.02287]
[1736532578845,3.0,3309.1,3308.2,3.403197]
[1736532579716,3.02191,3309.2,3308.2,3.403197]
[1736532579717,3.5575,3309.3,3308.3,3.02269]
[1736532579846,0.7749,3310.4,3309.6,3.02147]
[1736532580045,8.40021,3311.1,3309.9,3.58408033]
[1736532580046,0.7749,3310.9,3309.9,3.58408033]
[1736532580294,1.10198799,3311.2,3310.1,3.02105]
[1736532580457,0.7818,3311.2,3310.0,0.8232]
[1736532580660,3.80186,3311.2,3310.0,3.84433]
[1736532580875,3.02018,3311.1,3310.0,3.87453885]
[1736532581060,3.7818,3311.2,3310.0,0.8232]
[1736532581461,0.1668999,3311.3,3310.7,3.02047]
[1736532581792,0.1668999,3311.3,3310.9,0.7561]
[1736532582008,0.1668999,3311.3,3311.2,3.02005]
[1736532582430,0.1668999,3311.3,3311.2,3.05024619]
[1736532582573,0.1668999,3311.3,3311.2,3.80474619]
[1736532582927,0.1668999,3311.3,3311.2,6.80474619]
[1736532583237,0.1668999,3311.3,3311.2,7.87408788]
[1736532583238,9.9e-06,3311.3,3311.2,7.87408788]
[1736532583572,9.9e-06,3311.3,3311.2,4.87408788]
[1736532583987,9.9e-06,3311.3,3311.2,4.90428106]
[1736532584188,9.9e-06,3311.3,3311.2,4.87408788]
[1736532584725,9.9e-06,3311.3,3311.2,0.7545]
[1736532584894,9.9e-06,3311.3,3311.2,0.296]
[1736532585088,9.9e-06,3311.3,3311.1,3.58408033]
[1736532585574,0.0075,3311.2,3310.7,3.58408033]
[1736532586105,3.02762,3311.2,3310.7,3.58408033]
[1736532586432,0.35776299,3311.1,3310.7,3.58408033]
[1736532586635,0.015,3310.9,3310.3,3.58408033]
[1736532586770,0.015,3310.9,3309.9,0.8134]
[1736532586771,0.55,3310.5,3309.9,3.58408033]
[1736532587126,0.0075,3310.3,3309.5,3.58408033]
[1736532587431,0.5575,3310.3,3309.4,0.7869]
[1736532587734,3.02098,3310.2,3309.4,0.7869]
[1736532588422,3.02098,3310.2,3309.3,4.18747002]
[1736532588839,3.02098,3310.2,3309.3,4.60621702]
[1736532589042,3.02154,3309.6,3308.8,3.89147002]
[1736532589171,0.565,3309.7,3308.8,3.89147002]
[1736532590005,0.7624,3310.2,3309.3,3.89147002]
[1736532590208,3.78339,3310.2,3309.4,0.389147]
[1736532590631,0.7624,3310.2,3309.4,0.389147]
[1736532591008,0.5725,3310.4,3309.4,1.194047]
[1736532591201,3.59329,3310.4,3309.4,1.194047]
[1736532591406,0.5575,3310.2,3309.4,1.194047]
[1736532591708,0.0075,3310.2,3309.5,0.5085517]
[1736532591901,0.55,3310.5,3309.8,3.89147002]
[1736532592155,9.9e-06,3311.3,3309.8,3.92168292]
[1736532592156,0.8173,3311.1,3309.8,3.92168292]
[1736532592347,3.8375,3311.1,3310.0,3.02114]
[1736532592601,0.8173,3311.1,3310.3,3.89147002]
[1736532592903,3.02018,3311.1,3310.4,0.389147]
[1736532593109,9.9e-06,3311.3,3310.3,3.89147002]
[1736532593110,0.5725099,3311.3,3310.3,3.89147002]
[1736532593310,3.0,3311.2,3310.3,6.91234002]
[1736532593522,3.02007,3311.2,3310.3,3.89147002]
[1736532593751,0.0150099,3311.3,3310.3,3.89147002]
[1736532593919,0.5575,3310.3,3309.4,0.389147]
[1736532594110,0.55,3310.2,3309.5,0.5091617]
[1736532594313,3.02098,3310.2,3309.3,4.70247002]
[1736532594910,0.55,3310.0,3309.3,4.70247002]
[1736532595252,3.02076,3310.5,3309.4,0.03021664]
[1736532595418,3.0207,3310.5,3309.8,3.89147002]
[1736532595607,0.7604,3310.8,3309.9,0.03021151]
[1736532595806,0.7604,3310.8,3310.0,0.39216815]
[1736532595807,3.0205,3310.7,3310.0,0.39216815]
[1736532596033,0.5575,3310.7,3310.0,0.39216815]
[1736532596748,3.57801,3310.7,3310.0,0.39216815]
[1736532597051,0.7604,3310.8,3309.6,3.02146]
[1736532597248,0.7604,3310.8,3309.7,0.03021186]
[1736532597450,0.5575,3310.7,3309.7,0.03021186]
[1736532597664,0.015,3310.6,3309.3,7.72425002]
[1736532597868,0.55,3310.0,3309.3,0.811]
[1736532598353,0.0075,3309.9,3309.3,0.811]
[1736532598509,0.0075,3309.9,3308.9,3.02214]
[1736532598711,0.7819,3309.9,3308.9,0.8258]
[1736532599017,3.80315,3309.9,3308.9,0.8258]
[1736532599212,3.80315,3309.9,3309.0,0.471727]
[1736532600010,3.80315,3309.9,3308.9,0.8258]
[1736532600011,0.0075,3309.8,3308.9,0.8258]
[1736532600213,0.015,3309.8,3308.9,0.8258]
[1736532600409,0.8074,3310.2,3309.0,3.05227901]
[1736532600663,0.8074,3310.6,3309.5,3.02159]
[1736532600814,0.8074,3310.6,3309.4,0.8061]
[1736532601014,0.8074,3310.6,3309.0,0.8061]
[1736532601015,3.02133,3309.8,3309.0,0.8061]
[1736532601308,3.02115,3310.0,3309.0,0.8061]
[1736532601508,0.31603326,3309.8,3309.0,0.8061]
[1736532601715,3.02142,3309.7,3309.0,0.8061]
[1736532602009,0.31603326,3309.8,3309.0,0.8061]
[1736532602252,3.0216,3309.6,3309.0,0.8061]
[1736532602457,0.0225,3309.7,3309.0,0.8061]
[1736532602969,1.08273326,3309.8,3309.0,0.8061]
[1736532603482,0.0075,3309.6,3309.0,0.8061]
[1736532603639,3.02203,3309.1,3308.6,0.8089]
[1736532603964,0.0075,3310.1,3308.6,0.8089]
[1736532604142,3.02162,3309.5,3308.6,0.8089]
[1736532604356,3.02155,3309.6,3308.6,0.8089]
[1736532604666,3.0217,3309.4,3308.7,0.55]
[1736532604966,0.7667,3309.8,3308.7,0.58022202]
[1736532605145,3.7782,3310.1,3309.1,0.55]
[1736532605344,0.0225,3310.0,3308.7,0.58022202]
[1736532606008,0.7571,3310.1,3308.9,3.02215]
[1736532606216,3.79845,3311.0,3309.9,3.02116]
[1736532606464,3.79845,3311.0,3309.9,0.55]
[1736532606766,3.02034,3310.9,3309.9,3.57122]
[1736532606969,3.0075,3310.9,3310.1,0.55]
[1736532607190,0.0075,3310.7,3309.3,3.89147002]
[1736532607388,0.0075,3310.2,3309.5,1.0674]
[1736532607677,0.0075,3310.2,3309.5,0.296]
[1736532607678,3.02117,3310.0,3309.5,0.296]
[1736532607827,0.0075,3309.5,3308.7,0.7739]
[1736532608031,0.0075,3309.3,3308.4,0.7739]
[1736532608233,3.02931,3309.3,3308.4,0.7739]
[1736532608433,0.0075,3309.2,3308.4,0.7739]
[1736532608633,0.0075,3309.1,3308.1,3.02287]
[1736532609576,0.0075,3309.0,3308.2,0.55]
[1736532609965,0.0075,3309.2,3308.3,0.55]
[1736532610511,3.02939,3309.2,3308.3,0.55]
[1736532610717,0.0075,3308.6,3307.7,3.02322]
[1736532611079,3.02992,3308.6,3307.6,0.763]
[1736532611219,3.02992,3308.6,3307.7,0.55]
[1736532611680,3.02992,3308.6,3307.6,3.7863]
[1736532612248,3.02992,3308.6,3307.7,0.55]
[1736532612449,0.0075,3308.6,3307.7,3.57323]
[1736532612658,0.8317,3308.9,3307.9,0.55]
[1736532613033,0.0225,3308.6,3307.8,3.89147002]
[1736532613250,0.0225,3308.6,3307.6,4.16493]
[1736532613460,3.04493,3308.6,3307.8,0.55]
[1736532613675,3.04493,3308.6,3307.7,0.416493]
[1736532613870,0.8317,3308.9,3307.7,0.44672338]
[1736532614084,0.8317,3308.9,3308.0,0.55]
[1736532614519,3.03682,3309.3,3307.7,0.416493]
[1736532614520,0.015,3309.3,3308.1,0.03022708]
[1736532614720,0.7836,3309.9,3308.3,3.89147002]
[1736532614975,0.7836,3309.9,3309.5,0.55]
[1736532615284,0.015,3309.8,3309.2,3.02186]
[1736532615439,0.7533,3310.9,3309.5,0.55]
[1736532615638,0.7533,3310.9,3310.0,0.55]